fUSD/lending_fUSD_20260510
["ID","MTS","AMOUNT","RATE_DAILY","PERIOD"]
[421944869,1778361963000,-500.0,0.00011999,2]
[421944882,1778361963000,-876348.04235862,0.00012,2]
[421944881,1778361963000,-497.59486255,0.00011999,2]
[421944879,1778361963000,-500.0,0.00011999,2]
[421944878,1778361963000,-500.0,0.00011999,2]
[421944880,1778361963000,-469.24554506,0.00011999,2]
[421944875,1778361963000,-500.0,0.00011999,2]
[421944876,1778361963000,-500.0,0.00011999,2]
[421944874,1778361963000,-500.0,0.00011999,2]
[421944872,1778361963000,-500.0,0.00011999,2]
[421944873,1778361963000,-500.0,0.00011999,2]
[421944877,1778361963000,-500.0,0.00011999,2]
[421944883,1778361995000,-453.82007921,0.00012062,2]
[421944891,1778362078000,5000.0,0.00027397,120]
[421944892,1778362151000,-521.366321,0.00012062,2]
[421944894,1778362169000,-250.0,0.00012112,2]
[421944893,1778362169000,-14.693679,0.00012062,2]
[421944896,1778362169000,-1764.70861649,0.00012199,2]
[421944897,1778362169000,-285.79270311,0.00012199,2]
[421944898,1778362169000,-3625.71717434,0.00012299,2]
[421944895,1778362169000,-154.13,0.00012162,2]
[421944899,1778362202000,1896.0,0.00013479,14]
[421944936,1778362233000,-500.0,0.00013494,2]
[421944932,1778362233000,-151.0,0.00013494,2]
[421944931,1778362233000,-500.0,0.00013494,2]
[421944934,1778362233000,-500.0,0.00013494,2]
[421944929,1778362233000,-500.0,0.00013494,2]
[421944945,1778362233000,-151.0,0.00013494,2]
[421944938,1778362233000,-500.0,0.00013494,2]
[421944939,1778362233000,-151.0,0.00013494,2]
[421944933,1778362233000,-500.0,0.00013494,2]
[421944935,1778362233000,-151.0,0.00013494,2]
[421944947,1778362233000,-151.0,0.00013494,2]
[421944937,1778362233000,-151.0,0.00013494,2]
[421944956,1778362233000,-151.0,0.00013494,2]
[421944943,1778362233000,-151.0,0.00013494,2]
[421944948,1778362233000,-151.0,0.00013494,2]
[421944949,1778362233000,-151.0,0.00013494,2]
[421944951,1778362233000,-151.0,0.00013494,2]
[421944950,1778362233000,-151.0,0.00013494,2]
[421944952,1778362233000,-151.0,0.00013494,2]
[421944955,1778362233000,-151.0,0.00013494,2]
[421944959,1778362233000,-151.0,0.00013494,2]
[421944958,1778362233000,-151.0,0.00013494,2]
[421944960,1778362233000,-151.0,0.00013494,2]
[421944927,1778362233000,-151.0,0.00013494,2]
[421944941,1778362233000,-648.62104702,0.00013494,2]
[421944924,1778362233000,-151.0,0.00013494,2]
[421944907,1778362233000,-24585.78148199,0.00012612,2]
[421944926,1778362233000,-500.0,0.00013494,2]
[421944954,1778362233000,-151.0,0.00013494,2]
[421944901,1778362233000,-151.61,0.00012329,2]
[421944900,1778362233000,-570.11282566,0.00012299,2]
[421944902,1778362233000,-537.53221972,0.0001261,2]
[421944906,1778362233000,-3318.50379797,0.00012612,2]
[421944908,1778362233000,-7003.82032798,0.00012612,2]
[421944903,1778362233000,-212.48233256,0.00012611,2]
[421944905,1778362233000,-266.83274244,0.00012612,2]
[421944904,1778362233000,-87.51766744,0.00012611,2]
[421944909,1778362233000,-1833.51726259,0.00012612,2]
[421944910,1778362233000,-693.69606344,0.00012612,2]
[421944912,1778362233000,-504.70341213,0.00012612,2]
[421944928,1778362233000,-151.0,0.00013494,2]
[421944914,1778362233000,-154.13,0.00012802,2]
[421944911,1778362233000,-488.39471186,0.00012612,2]
[421944917,1778362233000,-250.0,0.00013268,2]
[421944916,1778362233000,-346.8400236,0.00013268,2]
[421944918,1778362233000,-2000.0,0.00013386,2]
[421944915,1778362233000,-150.0,0.00013041,2]
[421944920,1778362233000,-6147.6556472,0.00013479,2]
[421944919,1778362233000,-745.5043528,0.00013479,2]
[421944921,1778362233000,-200.0,0.00013494,2]
[421944922,1778362233000,-151.0,0.00013494,2]
[421944923,1778362233000,-500.0,0.00013494,2]
[421944930,1778362233000,-151.0,0.00013494,2]
[421944925,1778362233000,-500.0,0.00013494,2]
[421944913,1778362233000,-8550.8101996,0.00012612,2]
[421944953,1778362233000,-151.0,0.00013494,2]
[421944968,1778362233000,-500.0,0.00013495,2]
[421944962,1778362233000,-151.0,0.00013494,2]
[421944991,1778362233000,-500.0,0.00013699,2]
[421944997,1778362233000,-500.0,0.00013699,2]
[421944996,1778362233000,-500.0,0.00013699,2]
[421944990,1778362233000,-500.0,0.00013699,2]
[421944992,1778362233000,-500.0,0.00013699,2]
[421944999,1778362233000,-500.0,0.00013699,2]
[421944998,1778362233000,-500.0,0.00013699,2]
[421945001,1778362233000,-500.0,0.00013699,2]
[421945000,1778362233000,-500.0,0.00013699,2]
[421945002,1778362233000,-500.0,0.00013699,2]
[421945003,1778362233000,-500.0,0.00013699,2]
[421945007,1778362233000,-518.82616221,0.00013699,2]
[421945004,1778362233000,-500.0,0.00013699,2]
[421945006,1778362233000,-500.0,0.00013699,2]
[421945010,1778362233000,-500.0,0.00013768,2]
[421945009,1778362233000,-4182.02369905,0.00013723,2]
[421945008,1778362233000,-500.0,0.00013699,2]
[421945011,1778362233000,-420.0,0.00013835,2]
[421945015,1778362233000,-500.0,0.00014042,2]
[421945017,1778362233000,-577.10389741,0.00014283,2]
[421945016,1778362233000,-166.66,0.00014155,2]
[421945012,1778362233000,-178.69,0.00013871,2]
[421945014,1778362233000,-250.0,0.00014,2]
[421945013,1778362233000,-166.66,0.00013927,2]
[421944957,1778362233000,-151.0,0.00013494,2]
[421944989,1778362233000,-1000.0,0.00013699,2]
[421944994,1778362233000,-500.0,0.00013699,2]
[421945005,1778362233000,-601.88261622,0.00013699,2]
[421944993,1778362233000,-500.0,0.00013699,2]
[421944961,1778362233000,-151.0,0.00013494,2]
[421944995,1778362233000,-500.0,0.00013699,2]
[421944969,1778362233000,-500.0,0.00013698,2]
[421944964,1778362233000,-2193.11169053,0.00013494,2]
[421944963,1778362233000,-151.0,0.00013494,2]
[421944965,1778362233000,-151.0,0.00013494,2]
[421944966,1778362233000,-151.0,0.00013494,2]
[421944967,1778362233000,-151.0,0.00013494,2]
[421944970,1778362233000,-500.0,0.00013698,2]
[421944971,1778362233000,-500.0,0.00013698,2]
[421944972,1778362233000,-500.0,0.00013698,2]
[421944974,1778362233000,-422.88900491,0.00013698,2]
[421944975,1778362233000,-500.0,0.00013698,2]
[421944973,1778362233000,-500.0,0.00013698,2]
[421944988,1778362233000,-166.66,0.00013699,2]
[421944976,1778362233000,-309.013254,0.00013698,2]
[421944986,1778362233000,-500.0,0.00013698,2]
[421944984,1778362233000,-500.0,0.00013698,2]
[421944985,1778362233000,-500.0,0.00013698,2]
[421944987,1778362233000,-500.0,0.00013698,2]
[421944982,1778362233000,-500.0,0.00013698,2]
[421944983,1778362233000,-526.18836347,0.00013698,2]
[421944980,1778362233000,-500.0,0.00013698,2]
[421944977,1778362233000,-500.0,0.00013698,2]
[421944979,1778362233000,-500.0,0.00013698,2]
[421944978,1778362233000,-500.0,0.00013698,2]
[421944981,1778362233000,-500.0,0.00013698,2]
[421945059,1778362234000,-640.38066986,0.00016432,2]
[421945058,1778362234000,-640.38066986,0.00016432,2]
[421945052,1778362234000,-640.38066986,0.00016432,2]
[421945054,1778362234000,-640.38066986,0.00016432,2]
[421945055,1778362234000,-640.38066986,0.00016432,2]
[421945049,1778362234000,-640.38066986,0.00016432,2]
[421945057,1778362234000,-640.38066986,0.00016432,2]
[421945051,1778362234000,-640.38066986,0.00016432,2]
[421945053,1778362234000,-640.38066986,0.00016432,2]
[421945060,1778362234000,-640.38066986,0.00016432,2]
[421945056,1778362234000,-640.38066986,0.00016432,2]
[421945061,1778362234000,-640.38066986,0.00016432,2]
[421945076,1778362234000,-640.38066986,0.00016432,2]
[421945071,1778362234000,-640.38066986,0.00016432,2]
[421945063,1778362234000,-640.38066986,0.00016432,2]
[421945064,1778362234000,-640.38066986,0.00016432,2]
[421945073,1778362234000,-640.38066986,0.00016432,2]
[421945062,1778362234000,-640.38066986,0.00016432,2]
[421945070,1778362234000,-640.38066986,0.00016432,2]
[421945065,1778362234000,-640.38066986,0.00016432,2]
[421945072,1778362234000,-640.38066986,0.00016432,2]
[421945069,1778362234000,-640.38066986,0.00016432,2]
[421945066,1778362234000,-640.38066986,0.00016432,2]
[421945068,1778362234000,-640.38066986,0.00016432,2]
[421945074,1778362234000,-640.38066986,0.00016432,2]
[421945050,1778362234000,-640.38066986,0.00016432,2]
[421945067,1778362234000,-640.38066986,0.00016432,2]
[421945042,1778362234000,-178.69,0.00015681,2]
[421945018,1778362234000,-500.0,0.00014316,2]
[421945043,1778362234000,-150.45,0.00015767,2]
[421945019,1778362234000,-1000.0,0.00014323,2]
[421945021,1778362234000,-284.67781173,0.0001442,2]
[421945075,1778362234000,-640.38066986,0.00016432,2]
[421945020,1778362234000,-166.66,0.00014384,2]
[421945022,1778362234000,-5861.17,0.00014586,2]
[421945023,1778362234000,-500.0,0.0001459,2]
[421945024,1778362234000,-2500.0,0.00014605,2]
[421945036,1778362234000,-500.0,0.00015073,2]
[421945027,1778362234000,-163.20002808,0.000149,2]
[421945031,1778362234000,-1189.98,0.00015,2]
[421945026,1778362234000,-2000.0,0.00014874,2]
[421945030,1778362234000,-2379.97,0.00015,2]
[421945025,1778362234000,-150.45,0.00014781,2]
[421945047,1778362234000,-150.45,0.00016259,2]
[421945032,1778362234000,-2379.97,0.00015,2]
[421945035,1778362234000,-500.0,0.00015073,2]
[421945029,1778362234000,-2379.97,0.00015,2]
[421945034,1778362234000,-594.0,0.00015,2]
[421945033,1778362234000,-594.99,0.00015,2]
[421945037,1778362234000,-503.11139705,0.00015073,2]
[421945038,1778362234000,-420.0,0.00015178,2]
[421945044,1778362234000,-96.88637021,0.00016168,2]
[421945046,1778362234000,-501.93931305,0.00016233,2]
[421945048,1778362234000,-2000.0,0.00016361,2]
[421945041,1778362234000,-502.24165791,0.00015621,2]
[421945039,1778362234000,-150.45,0.00015274,2]
[421945045,1778362234000,-1403.11362979,0.00016168,2]
[421945040,1778362234000,-1000.0,0.00015621,2]
[421945028,1778362234000,-164.0,0.00015,2]
[421945077,1778362234000,-640.38066986,0.00016432,2]
[421945104,1778362234000,-643.14774684,0.00016432,2]
[421945080,1778362234000,-640.38066986,0.00016432,2]
[421945078,1778362234000,-640.38066986,0.00016432,2]
[421945118,1778362234000,-643.14774684,0.00016432,2]
[421945113,1778362234000,-643.14774684,0.00016432,2]
[421945117,1778362234000,-643.14774684,0.00016432,2]
[421945110,1778362234000,-643.14774684,0.00016432,2]
[421945112,1778362234000,-643.14774684,0.00016432,2]
[421945121,1778362234000,-643.14774684,0.00016432,2]
[421945116,1778362234000,-643.14774684,0.00016432,2]
[421945114,1778362234000,-643.14774684,0.00016432,2]
[421945126,1778362234000,-643.14774684,0.00016432,2]
[421945128,1778362234000,-643.14774684,0.00016432,2]
[421945123,1778362234000,-643.14774684,0.00016432,2]
[421945133,1778362234000,-140.62623737,0.00016438,2]
[421945124,1778362234000,-643.14774684,0.00016432,2]
[421945125,1778362234000,-643.14774684,0.00016432,2]
[421945131,1778362234000,-280.89,0.00016433,2]
[421945129,1778362234000,-643.14774684,0.00016432,2]
[421945127,1778362234000,-643.14774684,0.00016432,2]
[421945122,1778362234000,-643.14774684,0.00016432,2]
[421945130,1778362234000,-500.0,0.00016432,2]
[421945132,1778362234000,-104.73615792,0.00016438,2]
[421945134,1778362234000,-369.95011432,0.0001665,2]
[421945137,1778362234000,-186.92350509,0.00016799,2]
[421945136,1778362234000,-13.07649491,0.00016799,2]
[421945135,1778362234000,-506.48136939,0.00016716,2]
[421945138,1778362234000,-1377.7007108,0.00016922,2]
[421945139,1778362234000,-4639.39429941,0.00016922,2]
[421945119,1778362234000,-643.14774684,0.00016432,2]
[421945115,1778362234000,-643.14774684,0.00016432,2]
[421945120,1778362234000,-643.14774684,0.00016432,2]
[421945109,1778362234000,-643.14774684,0.00016432,2]
[421945079,1778362234000,-640.38066986,0.00016432,2]
[421945085,1778362234000,-640.38066986,0.00016432,2]
[421945083,1778362234000,-640.38066986,0.00016432,2]
[421945081,1778362234000,-212.02048031,0.00016432,2]
[421945082,1778362234000,-428.36018955,0.00016432,2]
[421945084,1778362234000,-640.38066986,0.00016432,2]
[421945086,1778362234000,-640.38066986,0.00016432,2]
[421945090,1778362234000,-640.38066986,0.00016432,2]
[421945096,1778362234000,-580.07233534,0.00016432,2]
[421945092,1778362234000,-640.38066986,0.00016432,2]
[421945094,1778362234000,-640.38066986,0.00016432,2]
[421945111,1778362234000,-643.14774684,0.00016432,2]
[421945087,1778362234000,-640.38066986,0.00016432,2]
[421945088,1778362234000,-640.38066986,0.00016432,2]
[421945089,1778362234000,-640.38066986,0.00016432,2]
[421945093,1778362234000,-640.38066986,0.00016432,2]
[421945105,1778362234000,-643.14774684,0.00016432,2]
[421945107,1778362234000,-598.63424827,0.00016432,2]
[421945106,1778362234000,-643.14774684,0.00016432,2]
[421945095,1778362234000,-60.30833452,0.00016432,2]
[421945098,1778362234000,-640.38066986,0.00016432,2]
[421945101,1778362234000,-643.14774684,0.00016432,2]
[421945103,1778362234000,-643.14774684,0.00016432,2]
[421945099,1778362234000,-640.38066986,0.00016432,2]
[421945100,1778362234000,-640.38066986,0.00016432,2]
[421945102,1778362234000,-643.14774684,0.00016432,2]
[421945097,1778362234000,-640.38066986,0.00016432,2]
[421945091,1778362234000,-640.38066986,0.00016432,2]
[421945108,1778362234000,-44.51349857,0.00016432,2]
[421945147,1778362235000,-1941.31988904,0.00017447,2]
[421945148,1778362235000,-280.89,0.00017803,2]
[421945149,1778362235000,-1342.35957668,0.00017848,2]
[421945151,1778362235000,-158.55,0.00017857,2]
[421945150,1778362235000,-657.64042332,0.00017848,2]
[421945146,1778362235000,-1557.27262659,0.00017447,2]
[421945152,1778362235000,-4719.30829654,0.0001814,2]
[421945140,1778362235000,-721.00498979,0.00016922,2]
[421945141,1778362235000,-166.66,0.00017067,2]
[421945143,1778362235000,-206.88,0.0001725,2]
[421945142,1778362235000,-280.89,0.00017118,2]
[421945144,1778362235000,-168.81,0.00017441,2]
[421945145,1778362235000,-311.14748437,0.00017447,2]
[421945154,1778362235000,-1369.51623453,0.0001814,2]
[421945163,1778362235000,-280.89,0.00018487,2]
[421945155,1778362235000,-300.0,0.0001814,2]
[421945158,1778362235000,-502.98764419,0.0001814,2]
[421945164,1778362235000,-280.89,0.00019172,2]
[421945168,1778362235000,-749.6440699,0.00019239,2]
[421945162,1778362235000,-300.0,0.00018266,2]
[421945160,1778362235000,-473.84530714,0.0001814,2]
[421945166,1778362235000,-2827.68173886,0.00019239,2]
[421945167,1778362235000,-454.02947525,0.00019239,2]
[421945165,1778362235000,-995.41296113,0.00019239,2]
[421945161,1778362235000,-173.98840318,0.0001814,2]
[421945156,1778362235000,-1048.58954683,0.0001814,2]
[421945153,1778362235000,-1898.12028,0.0001814,2]
[421945159,1778362235000,-3558.96512418,0.0001814,2]
[421945157,1778362235000,-1991.4070198,0.0001814,2]
[421945169,1778362235000,-494.34199368,0.00019239,2]
[421945179,1778362238000,-380.52932165,0.00019239,2]
[421945192,1778362238000,-15016.80767354,0.0002,2]
[421945193,1778362238000,-2983.08923867,0.0002,7]
[421945187,1778362238000,-166.66,0.00019884,2]
[421945190,1778362238000,-500.0,0.00019999,2]
[421945183,1778362238000,-7167.63,0.00019339,2]
[421945181,1778362238000,-3721.61002728,0.00019239,2]
[421945178,1778362238000,-24128.50850731,0.00019239,2]
[421945173,1778362238000,-500.0,0.00013698,2]
[421945182,1778362238000,-150.99,0.00019339,2]
[421945177,1778362238000,-500.0,0.00018189,2]
[421945176,1778362238000,-500.0,0.00013698,2]
[421945174,1778362238000,-500.0,0.00013698,2]
[421945175,1778362238000,-500.0,0.00013698,2]
[421945188,1778362238000,-300.0,0.00019999,2]
[421945172,1778362238000,-500.0,0.00013698,2]
[421945180,1778362238000,-624.53735492,0.00019239,2]
[421945184,1778362238000,-9999.99,0.00019339,2]
[421945191,1778362238000,-507.78700204,0.00019999,2]
[421945185,1778362238000,-206.88,0.00019406,2]
[421945189,1778362238000,-666.0,0.00019999,2]
[421945208,1778362238000,-1046.47,0.00021511,2]
[421945209,1778362238000,-34376.29544996,0.00021521,2]
[421945207,1778362238000,-164.709108,0.00021482,2]
[421945201,1778362238000,-539.0,0.00021,2]
[421945203,1778362238000,-207.0,0.00021,2]
[421945202,1778362238000,-735.0,0.00021,2]
[421945200,1778362238000,-214.73073128,0.00020899,2]
[421945198,1778362238000,-153.0,0.0002,2]
[421945204,1778362238000,-165.0,0.00021,2]
[421945199,1778362238000,-280.89,0.00020542,2]
[421945197,1778362238000,-207.0,0.0002,2]
[421945195,1778362238000,-539.0,0.0002,2]
[421945206,1778362238000,-280.89,0.00021226,2]
[421945196,1778362238000,-735.0,0.0002,2]
[421945194,1778362238000,-537.1048019,0.0002,7]
[421945205,1778362238000,-179.518139,0.00021091,2]
[421945186,1778362238000,-280.89,0.00019857,2]
[421945246,1778362239000,-150.0,0.00022089,4]
[421945249,1778362239000,-150.0,0.00022124,4]
[421945247,1778362239000,-150.0,0.00022106,4]
[421945242,1778362239000,-150.0,0.00022053,4]
[421945245,1778362239000,-150.0,0.00022079,4]
[421945251,1778362239000,-150.0,0.00022132,4]
[421945244,1778362239000,-150.0,0.00022078,4]
[421945241,1778362239000,-150.0,0.00022045,4]
[421945248,1778362239000,-150.0,0.00022108,4]
[421945240,1778362239000,-150.0,0.00022042,4]
[421945243,1778362239000,-500.0,0.00022053,2]
[421945250,1778362239000,-150.0,0.00022124,4]
[421945253,1778362239000,-150.0,0.00022159,4]
[421945257,1778362239000,-150.0,0.00022185,4]
[421945263,1778362239000,-150.0,0.00022238,4]
[421945258,1778362239000,-150.0,0.00022212,4]
[421945255,1778362239000,-150.0,0.0002217,4]
[421945262,1778362239000,-150.0,0.00022235,4]
[421945254,1778362239000,-150.0,0.00022164,4]
[421945256,1778362239000,-150.0,0.00022173,4]
[421945261,1778362239000,-150.0,0.00022233,4]
[421945259,1778362239000,-353.51553012,0.00022219,2]
[421945260,1778362239000,-150.0,0.00022225,4]
[421945264,1778362239000,-150.0,0.00022256,4]
[421945238,1778362239000,-150.0,0.00022022,4]
[421945252,1778362239000,-150.0,0.00022156,4]
[421945230,1778362239000,-150.0,0.00021973,4]
[421945210,1778362239000,-152.0,0.00021552,2]
[421945234,1778362239000,-539.0,0.00022,2]
[421945211,1778362239000,-166.410876,0.0002156,7]
[421945268,1778362239000,-150.0,0.00022286,4]
[421945215,1778362239000,-500.01861165,0.00021918,2]
[421945217,1778362239000,-247.56730629,0.00021921,2]
[421945213,1778362239000,-280.89,0.00021911,2]
[421945216,1778362239000,-150.0,0.00021921,4]
[421945214,1778362239000,-5000.0,0.00021918,2]
[421945212,1778362239000,-206.88,0.00021563,2]
[421945218,1778362239000,-150.0,0.00021921,2]
[421945221,1778362239000,-150.0,0.00021921,2]
[421945219,1778362239000,-150.0,0.00021921,2]
[421945222,1778362239000,-250.23673418,0.00021921,2]
[421945237,1778362239000,-150.0,0.00022005,4]
[421945226,1778362239000,-150.74310605,0.00021921,2]
[421945223,1778362239000,-150.0,0.00021921,2]
[421945227,1778362239000,-150.0,0.00021921,2]
[421945224,1778362239000,-150.0,0.00021921,2]
[421945225,1778362239000,-150.0,0.00021921,2]
[421945228,1778362239000,-150.0,0.00021921,2]
[421945229,1778362239000,-150.0,0.00021947,4]
[421945233,1778362239000,-150.0,0.00022,4]
[421945239,1778362239000,-150.0,0.00022026,4]
[421945235,1778362239000,-735.0,0.00022,2]
[421945232,1778362239000,-150.0,0.00021999,4]
[421945236,1778362239000,-207.0,0.00022,2]
[421945231,1778362239000,-150.0,0.00021983,4]
[421945220,1778362239000,-150.0,0.00021921,2]
[421945265,1778362239000,-150.0,0.00022265,4]
[421945267,1778362239000,-150.0,0.00022268,4]
[421945273,1778362239000,-150.0,0.00022326,4]
[421945299,1778362239000,-150.0,0.00022549,4]
[421945298,1778362239000,-150.0,0.00022545,4]
[421945302,1778362239000,-150.0,0.00022592,4]
[421945307,1778362239000,-150.0,0.00022628,4]
[421945310,1778362239000,-150.0,0.00022651,4]
[421945304,1778362239000,-150.0,0.00022608,4]
[421945309,1778362239000,-150.0,0.00022635,4]
[421945312,1778362239000,-150.0,0.0002267,4]
[421945306,1778362239000,-150.0,0.00022616,4]
[421945303,1778362239000,-280.89,0.00022596,2]
[421945305,1778362239000,-150.0,0.00022609,4]
[421945311,1778362239000,-150.0,0.00022662,4]
[421945297,1778362239000,-150.0,0.00022529,4]
[421945308,1778362239000,-150.0,0.00022631,4]
[421945315,1778362239000,-150.0,0.00022706,4]
[421945314,1778362239000,-150.0,0.00022688,4]
[421945316,1778362239000,-150.0,0.00022715,4]
[421945323,1778362239000,-150.0,0.00022773,4]
[421945318,1778362239000,-150.0,0.00022732,4]
[421945324,1778362239000,-150.0,0.00022785,4]
[421945322,1778362239000,-150.0,0.00022768,4]
[421945321,1778362239000,-150.0,0.0002276,4]
[421945319,1778362239000,-150.0,0.00022732,4]
[421945320,1778362239000,-150.0,0.00022741,4]
[421945325,1778362239000,-150.0,0.00022794,4]
[421945326,1778362239000,-150.0,0.00022795,4]
[421945313,1778362239000,-150.0,0.00022676,4]
[421945301,1778362239000,-150.0,0.00022582,4]
[421945317,1778362239000,-150.0,0.00022732,4]
[421945296,1778362239000,-150.0,0.00022529,4]
[421945293,1778362239000,-150.0,0.00022508,4]
[421945270,1778362239000,-150.0,0.00022295,4]
[421945271,1778362239000,-150.0,0.00022313,4]
[421945269,1778362239000,-150.0,0.00022291,4]
[421945274,1778362239000,-150.0,0.00022326,4]
[421945276,1778362239000,-150.0,0.00022344,4]
[421945272,1778362239000,-150.0,0.00022318,4]
[421945277,1778362239000,-150.0,0.00022358,4]
[421945281,1778362239000,-150.0,0.00022408,4]
[421945278,1778362239000,-150.0,0.00022371,4]
[421945280,1778362239000,-150.0,0.00022397,4]
[421945283,1778362239000,-150.0,0.00022408,4]
[421945279,1778362239000,-150.0,0.00022392,4]
[421945275,1778362239000,-150.0,0.0002234,4]
[421945284,1778362239000,-150.0,0.0002242,4]
[421945287,1778362239000,-150.0,0.00022428,4]
[421945300,1778362239000,-150.0,0.00022556,4]
[421945292,1778362239000,-150.0,0.00022503,4]
[421945295,1778362239000,-150.0,0.00022529,4]
[421945291,1778362239000,-150.0,0.00022483,4]
[421945290,1778362239000,-150.0,0.00022477,4]
[421945289,1778362239000,-150.0,0.00022471,4]
[421945286,1778362239000,-150.0,0.00022424,4]
[421945282,1778362239000,-150.0,0.00022408,4]
[421945285,1778362239000,-150.0,0.00022424,4]
[421945288,1778362239000,-150.0,0.0002245,4]
[421945294,1778362239000,-150.0,0.00022529,4]
[421945362,1778362240000,-150.0,0.00023099,4]
[421945363,1778362240000,-150.0,0.00023107,4]
[421945361,1778362240000,-150.0,0.00023096,4]
[421945365,1778362240000,-150.0,0.00023138,4]
[421945359,1778362240000,-150.0,0.00023059,4]
[421945358,1778362240000,-150.0,0.00023045,4]
[421945356,1778362240000,-150.0,0.00023032,4]
[421945366,1778362240000,-150.0,0.00023138,4]
[421945355,1778362240000,-150.0,0.00023021,4]
[421945360,1778362240000,-150.0,0.00023085,4]
[421945357,1778362240000,-150.0,0.00023037,4]
[421945369,1778362240000,-150.0,0.00023165,4]
[421945367,1778362240000,-150.0,0.00023138,4]
[421945372,1778362240000,-500.0,0.00023172,2]
[421945368,1778362240000,-150.0,0.00023138,4]
[421945370,1778362240000,-150.0,0.0002317,4]
[421945378,1778362240000,-150.0,0.0002324,4]
[421945371,1778362240000,-500.0,0.00023172,2]
[421945374,1778362240000,-150.0,0.0002318,4]
[421945377,1778362240000,-150.0,0.00023232,4]
[421945375,1778362240000,-150.0,0.00023191,4]
[421945353,1778362240000,-150.0,0.00023012,4]
[421945376,1778362240000,-150.0,0.00023218,4]
[421945364,1778362240000,-150.0,0.00023112,4]
[421945354,1778362240000,-150.0,0.00023017,4]
[421945334,1778362240000,-150.0,0.00022874,4]
[421945351,1778362240000,-207.0,0.00023,2]
[421945380,1778362240000,-150.0,0.00023256,4]
[421945329,1778362240000,-150.0,0.00022834,4]
[421945330,1778362240000,-150.0,0.00022844,4]
[421945331,1778362240000,-150.0,0.00022847,4]
[421945328,1778362240000,-150.0,0.00022821,4]
[421945332,1778362240000,-150.0,0.00022857,4]
[421945340,1778362240000,-150.0,0.00022927,4]
[421945343,1778362240000,-150.0,0.00022935,4]
[421945336,1778362240000,-150.0,0.00022895,4]
[421945339,1778362240000,-150.0,0.0002292,4]
[421945333,1778362240000,-150.0,0.00022863,4]
[421945341,1778362240000,-150.0,0.00022928,4]
[421945342,1778362240000,-150.0,0.00022935,4]
[421945335,1778362240000,-150.0,0.00022895,4]
[421945337,1778362240000,-150.0,0.00022895,4]
[421945338,1778362240000,-150.0,0.000229,4]
[421945347,1778362240000,-150.0,0.0002298,4]
[421945348,1778362240000,-150.0,0.00022982,4]
[421945345,1778362240000,-150.0,0.00022953,4]
[421945344,1778362240000,-150.0,0.00022942,4]
[421945346,1778362240000,-150.0,0.00022964,4]
[421945352,1778362240000,-150.0,0.00023006,4]
[421945349,1778362240000,-539.0,0.00023,2]
[421945350,1778362240000,-735.0,0.00023,2]
[421945387,1778362240000,-150.0,0.00023312,4]
[421945373,1778362240000,-150.0,0.00023178,4]
[421945389,1778362240000,-150.0,0.00023335,4]
[421945412,1778362240000,-150.0,0.00023516,4]
[421945409,1778362240000,-150.0,0.00023492,4]
[421945408,1778362240000,-150.0,0.00023483,4]
[421945413,1778362240000,-150.0,0.00023535,4]